Cogmind - Beta 14 @@@ ROGUE MODE // 2025.01.03 @ 13:49:10 Player: P9H Result: Destroyed by H-61 Shepherd with Heavy Assault Cannon Performance ------------- Evolutions (2) 1000 Regions Visited (4) 800 Robots Destroyed (46) 230 Value Destroyed (1191) 1191 Prototype IDs (0) 0 Alien Tech Used (0) 0 Bonus (37) 37 TOTAL SCORE: 3258 Bonus ------- High Alert Combat Kills 37 Cogmind --------- Core Integrity 0/550 Matter 280/300 Energy 80/100 System Corruption 7% Temperature Cool (0) Movement Core (50) Location -8/Materials Parts ------- > --- POWER (1) -------- (None) > --- PROPULSION (5) --- (None) > --- UTILITY (2) ------ (None) > --- WEAPON (3) ------- Remote Datajack > --- INVENTORY (5) ---- Heat Sink Heat Sink Improved Heat Sink Peak State ------------ > --- POWER ------------ Light Nuclear Core > --- PROPULSION ------- Flight Unit Flight Unit Cesium-ion Thruster > --- UTILITY ---------- Small Storage Unit Tractor Beam > --- WEAPON ----------- Flail Flail Flail > --- INVENTORY -------- Light Ion Engine Heat Sink Heat Sink Improved Heat Sink EM Shotgun Remote Datajack Remote Datajack [Rating: 17] Favorites ----------- Power Ion Engine Engine Ion Engine Power Core Light Nuclear Core Propulsion Aluminum Leg Leg Aluminum Leg Wheel Wheel Flight Unit Flight Unit Utility Small Storage Unit Device Tractor Beam Storage Small Storage Unit Weapon Flail Energy Gun Medium Laser Ballistic Gun Assault Rifle Special Weapon Remote Datajack Impact Weapon Flail Build | -11 -10 -9 -9 -8 ------- Run | Yrd Mat Mat Min Mat Slots Evolved 4 | . . 2 . 2 Power . | . . . . . Propulsion 3 | . . 2 . 1 Utility . | . . . . . Weapon 1 | . . . . 1 Parts Attached 45 | 9 . 10 9 17 Power 5 | 1 . 1 1 2 Engine 4 | 1 . 1 1 1 Core 1 | . . . . 1 Reactor . | . . . . . Propulsion 21 | 4 . 4 6 7 Treads . | . . . . . Leg 4 | . . 4 . . Wheel 11 | 4 . . 6 1 Hover . | . . . . . Flight 6 | . . . . 6 Utility 4 | 1 . . 2 1 Device 2 | . . . 1 1 Storage 2 | 1 . . 1 . Processor . | . . . . . Hackware . | . . . . . Protection . | . . . . . Artifact . | . . . . . Weapon 15 | 3 . 5 . 7 Energy Gun 4 | 1 . . . 3 Energy Cannon . | . . . . . Ballistic Gun 3 | 2 . 1 . . Ballistic Cannon . | . . . . . Launcher . | . . . . . Special Weapon 1 | . . . . 1 Impact Weapon 7 | . . 4 . 3 Slashing Weapon . | . . . . . Piercing Weapon . | . . . . . Special Melee Weapon . | . . . . . Unidentified Prototypes . | . . . . . Parts Lost 30 | . . 6 7 17 Power 5 | . . 1 1 3 Propulsion 19 | . . 4 5 10 Utility 3 | . . . 1 2 Weapon 3 | . . 1 . 2 Highest Loss Streak 8 | . . 3 6 8 To Critical Strikes 1 | . . . . 1 Average Slot Usage (%) 70 | . 85 71 62 73 Engine 8 | . 14 8 10 6 Leg 8 | . . 27 9 . Wheel 8 | . 28 3 6 10 Flight 5 | . . . . 14 Device 3 | . . . 1 6 Storage 10 | . 14 11 11 8 Energy Gun 1 | . 14 1 . 1 Ballistic Gun 3 | . 14 12 . . Impact Weapon 18 | . . 7 22 25 Peak Build Rating 17 | 6 6 9 12 17 Average Rating 9 | 3 6 7 8 13 On Entrance 6 | . 6 6 9 10 Naked Turns . | . . . . . Heaviest Build 19 | 14 14 14 17 19 Greatest Support 40 | 20 20 40 30 30 Greatest Overweight (x) 5 | . . 4 5 3 Average Overweight (x) . | . . . . . Largest Inventory Capacity 8 | 8 8 8 8 8 Average Capacity 7 | 6 8 8 8 7 Most Carried 8 | 5 2 8 8 8 Average Carried 6 | 2 2 5 7 6 Final Capacity 8 | 8 8 8 8 5 Final Carried 8 | 2 2 8 7 3 Class Distribution -------------------- 79% | Mutant 18% | Scavenger-Mutant Dominant Class ---------------- Mutant | -10/Materials Mutant | -9/Materials Mutant | -9/Mines Mutant | -8/Materials Resources | -11 -10 -9 -9 -8 ----------- Run | Yrd Mat Mat Min Mat Matter Collected 688 | 248 75 131 77 157 Remotely 85 | . . . . 85 Salvage Created 1627 | . 110 457 206 854 Parts 60 | . 4 26 4 26 Haulers Intercepted . | . . . . . Recyclers Shooed . | . . . . . Parts Field Recycled . | . . . . . Retrieved Matter . | . . . . . Parts Self-Destructed . | . . . . . Prevented . | . . . . . Kills | -11 -10 -9 -9 -8 ------- Run | Yrd Mat Mat Min Mat Combat Hostiles Destroyed 42 | . 4 12 7 19 Melee 20 | . . 4 4 12 Guns 11 | . 4 6 . 1 Classes Destroyed 10 | . 2 2 3 3 Worker 4 | . . . 3 1 Builder 1 | . . . 1 . Recycler 3 | . . . . 3 Operator 1 | . . 1 . . Swarmer 13 | . 2 3 . 8 Grunt 19 | . 2 7 2 8 Brawler 1 | . . . . 1 Sentry 3 | . . 2 . 1 Hunter 1 | . . . . 1 Assembled 5 | . . . 5 . Best Kill Streak 8 | . 2 4 4 8 Combat Bots Only 6 | . 2 3 3 6 Max Kills in Single Turn 2 | . 1 2 1 1 Gunslinging 1 | . . 1 . . Exploded . | . . . . . Melee 1 | . . 1 1 1 Uniques/NPCs Destroyed . | . . . . . Combat | -11 -10 -9 -9 -8 -------- Run | Yrd Mat Mat Min Mat Hostile Shots Fired 255 | . 19 94 36 106 Missed 73 | . 7 29 11 26 Damage Taken 2523 | . 113 700 402 1308 Core 806 | . 22 151 68 565 Absorbed by Shields . | . . . . . Core Remaining (%) 78 | 100 91 . 45 . Volleys Fired 42 | . 11 14 . 17 Largest 2 | . 2 2 . 1 Hottest 70 | . 70 70 . 45 Shots Fired 66 | . 22 27 . 17 Gun 66 | . 22 27 . 17 Cannon . | . . . . . Launcher . | . . . . . Special . | . . . . . Kinetic 34 | . 11 23 . . Thermal 15 | . 11 4 . . Explosive . | . . . . . Electromagnetic 17 | . . . . 17 Robot Hit Streak 10 | . 6 10 . 6 Robot Miss Streak 3 | . 1 2 . 3 Penetration Max . | . . . . . Secondary Targets 3 | . 1 2 . . Max Gunslinging Chain 1 | . 1 1 . . Shots Hit Robots 127 | . 16 35 14 62 Core Hits 40 | . 6 14 3 17 Critical Kills 5 | . . 1 1 3 Critical Parts Destroyed 9 | . . 2 2 5 Critical Strikes 15 | . 1 3 3 8 Burn 1 | . 1 . . . Smash 14 | . . 3 3 8 Melee Attacks 122 | . . 17 27 78 Impact 122 | . . 17 27 78 Slashing . | . . . . . Piercing . | . . . . . Sneak Attacks 13 | . . 2 5 6 Combat Hostiles 3 | . . 1 1 1 Follow-up Attacks 19 | . . 2 2 15 Damage Inflicted 4032 | . 197 816 833 2186 Guns 676 | . 197 262 . 217 Cannons . | . . . . . Explosions 36 | . . . . 36 Melee 3320 | . . 554 833 1933 Ramming . | . . . . . Kinetic 347 | . 123 224 . . Thermal 148 | . 74 38 . 36 Explosive . | . . . . . Electromagnetic 217 | . . . . 217 Impact 3320 | . . 554 833 1933 Slashing . | . . . . . Piercing . | . . . . . Highest Corruption 7 | . . . . 7 Average Corruption 3 | . . . . 3 Corruption Purged . | . . . . . Corruption Blocked . | . . . . . Effects 2 | . . . . 2 Matter Fused 2 | . . . . 2 Overload Shots . | . . . . . Overflow Damage 1089 | . . 245 372 472 Projectiles 11 | . . . . 11 Explosions 6 | . . . . 6 Melee 1072 | . . 245 372 455 Knockbacks 10 | . . . . 10 Impact 9 | . . . . 9 Kinetic . | . . . . . Secondary 1 | . . . . 1 Self-Inflicted Damage 28 | . . . . 28 Shots 1 | . . . . 1 Rammed . | . . . . . Targets Rammed . | . . . . . Kicked . | . . . . . Crushed . | . . . . . Highest Temperature 110 | . 84 110 . 24 Average Temperature 34 | . 32 52 . 13 Received Heat Transfer 693 | . 36 258 48 351 Siege Activations . | . . . . . Robots Corrupted 12 | . . 2 3 7 Combat Hostiles 11 | . . 2 3 6 Parts Fried 18 | . . 6 1 11 Impact Corruptions 40 | . . 7 10 23 Robots Melted . | . . . . . Combat Hostiles . | . . . . . Parts Melted 2 | . 2 . . . Heat Transferred 457 | . 296 111 . 50 Parts Sabotaged . | . . . . . Parts Stolen . | . . . . . Parts Stripped . | . . . . . Power Chain Reactions 1 | . . . . 1 Alert | -11 -10 -9 -9 -8 ------- Run | Yrd Mat Mat Min Mat Peak Influence 494 | . 130 389 221 494 Initial 151 | . . 54 151 7 Average 197 | . 63 161 154 289 Maximum Alert Level 2 | . . 1 1 2 Low Security (%) 61 | 100 100 68 89 26 Level 1 23 | . . 31 10 35 Level 2 14 | . . . . 37 Level 3 . | . . . . . Level 4 . | . . . . . Level 5 . | . . . . . High Security . | . . . . . Max Security . | . . . . . Squads Dispatched 3 | . 1 1 . 1 Investigation . | . . . . . Extermination . | . . . . . Reinforcement 3 | . 1 1 . 1 Assault . | . . . . . Garrison . | . . . . . Intercept . | . . . . . Searches Triggered . | . . . . . Construction Impeded . | . . . . . Haulers Reinforced . | . . . . . Active Scanning Responses . | . . . . . Cargo Convoy Interrupts . | . . . . . Stealth | -11 -10 -9 -9 -8 --------- Run | Yrd Mat Mat Min Mat Distress Signals 5 | . . 3 . 2 Communications Jammed . | . . . . . Distress Signals . | . . . . . Times Spotted 70 | . 6 19 7 38 Peak Tracking Total 7 | . 3 7 2 6 Tactical Retreats 12 | . 1 2 1 8 Traps | -11 -10 -9 -9 -8 ------- Run | Yrd Mat Mat Min Mat Traps Triggered . | . . . . . Indirectly . | . . . . . Trap Hack Attempts . | . . . . . Triggered . | . . . . . Disarmed . | . . . . . Reprogrammed . | . . . . . Reused . | . . . . . Traps Extracted . | . . . . . Installed . | . . . . . Triggered 1 | . . . . 1 Machines | -11 -10 -9 -9 -8 ---------- Run | Yrd Mat Mat Min Mat Machines Disabled . | . . . . . Max in Single Turn . | . . . . . Machines Repaired . | . . . . . Machines Dismantled . | . . . . . Machines Sabotaged . | . . . . . Overloaded Fab Kills . | . . . . . Hacking | -11 -10 -9 -9 -8 --------- Run | Yrd Mat Mat Min Mat Machines Accessed 1 | . 1 . . . Terminals 1 | . 1 . . . Fabricators . | . . . . . Repair Stations . | . . . . . Recycling Units . | . . . . . Scanalyzers . | . . . . . Garrison Access . | . . . . . Total Hacks 1 | . 1 . . . Successful 1 | . 1 . . . Failed . | . . . . . Catastrophic . | . . . . . Database Lockouts . | . . . . . Manual . | . . . . . Terminals 1 | . 1 . . . Fabricators . | . . . . . Repair Stations . | . . . . . Recycling Units . | . . . . . Scanalyzers . | . . . . . Garrison Access . | . . . . . Terminal Hacks 1 | . 1 . . . Locate Traps 1 | . 1 . . . Fabricator Hacks . | . . . . . Repair Station Hacks . | . . . . . Recycling Unit Hacks . | . . . . . Scanalyzer . | . . . . . Garrison Access Hacks . | . . . . . Unauthorized Hacks . | . . . . . Terminals . | . . . . . Fabricators . | . . . . . Repair Stations . | . . . . . Recycling Units . | . . . . . Scanalyzers . | . . . . . Garrison Access . | . . . . . Data Cores Recovered . | . . . . . Used . | . . . . . Hacking Detections . | . . . . . Full Trace Events . | . . . . . Feedback Events . | . . . . . Feedback Blocked . | . . . . . Robot Schematics Acquired . | . . . . . Robots Built . | . . . . . Authchips . | . . . . . Time . | . . . . . Total Robot Build Rating . | . . . . . Part Schematics Acquired . | . . . . . Parts Built . | . . . . . Authchips . | . . . . . Time . | . . . . . Total Part Build Rating . | . . . . . Parts Repaired . | . . . . . Time . | . . . . . Parts Recycled . | . . . . . Recycled Matter . | . . . . . Retrieved Matter . | . . . . . Retrieved Components . | . . . . . Parts Scanalyzed . | . . . . . Part Schematics Acquired . | . . . . . Parts Damaged . | . . . . . Bothacking | -11 -10 -9 -9 -8 ------------ Run | Yrd Mat Mat Min Mat Used RIF Installer . | . . . . . Robots Hacked . | . . . . . Non-combat . | . . . . . Combat . | . . . . . Robot Hacks Applied . | . . . . . Relay Couplers Released . | . . . . . Fabnet Peak Effective % . | . . . . . Robots Rewired . | . . . . . Allies Hacked . | . . . . . Hacks Repelled . | . . . . . Allies | -11 -10 -9 -9 -8 -------- Run | Yrd Mat Mat Min Mat Total Allies . | . . . . . Largest Group . | . . . . . Highest-Rated Group . | . . . . . Highest-Rated Ally . | . . . . . Total Orders . | . . . . . Ally Attacks . | . . . . . Total Damage . | . . . . . Kills . | . . . . . Allies Corrupted . | . . . . . Allies Melted . | . . . . . Intel | -11 -10 -9 -9 -8 ------- Run | Yrd Mat Mat Min Mat Robot Analysis Total . | . . . . . Derelict Logs Recovered . | . . . . . Drone Launches . | . . . . . Drone Recoveries . | . . . . . Exploration | -11 -10 -9 -9 -8 ------------- Run | Yrd Mat Mat Min Mat Turns Passed 1599 | 50 111 319 499 620 Spaces Moved 774 | 41 85 179 157 312 Core 49 | 12 . 6 27 4 Treads . | . . . . . Legs 203 | . . 141 62 . Wheels 286 | 29 85 32 68 72 Hover . | . . . . . Flight 236 | . . . . 236 Fastest Speed 29 | 50 80 80 80 29 Average Speed 109 | 71 80 118 145 98 Slowest Speed 300 | 80 80 250 300 202 Overloaded Moves . | . . . . . Propulsion Burnouts . | . . . . . Robots Hopped . | . . . . . Cave-ins Triggered . | . . . . . Exploration Rate (%) 22 | 3 25 20 29 35 Regions Visited 4 Branch Regions 1 Pre-discovered Areas . | . . . . . Known Exits Taken . | . . . . . Unknown Exits Taken 4 | 1 1 1 1 . Scrap Searched . | . . . . . Spaces Dug . | . . . . . Terrain Destroyed 3 | . . . . 3 Melee . | . . . . . Projectile . | . . . . . AOE 3 | . . . . 3 Terrain Rammed . | . . . . . Walls Destroyed . | . . . . . Machines Disabled . | . . . . . Actions | -11 -10 -9 -9 -8 --------- Run | Yrd Mat Mat Min Mat Total 1316 | 62 105 239 393 517 Wait 327 | 3 10 7 203 104 Move 770 | 40 84 178 156 312 Hop . | . . . . . Pick Up 35 | 8 . 13 3 11 Fast Attach 6 | . . . 5 1 Attach 30 | 8 . 6 4 12 Detach 2 | 2 . . . . Swap 9 | 1 . 4 . 4 Drop 5 | . . 3 1 1 Fire 42 | . 11 14 . 17 Melee 90 | . . 14 21 55 Ram . | . . . . . Kick . | . . . . . Crush . | . . . . . Escape Stasis . | . . . . . Rewire . | . . . . . Trap . | . . . . . Miscellaneous . | . . . . . Route ------- -11/Scrapyard -10/Materials -9/Materials -9/Mines -8/Materials (discovered 1 exit: [*Fac]) History --------- Turn | Location | Event 2 | -11/Scrapyard | Met Revision 17 28 | -11/Scrapyard | Discovered new exit (range 16) 51 | -11/Scrapyard | Entered Materials 154 | -10/Materials | Discovered new exit (range 8) 162 | -10/Materials | Entered another Materials area 162 | -9/Materials | Evolved 2 slots: Propulsion x2 244 | -9/Materials | Lost 3 parts (2n1w) 355 | -9/Materials | Discovered new exit (range 7) 481 | -9/Materials | Entered Mines 482 | -9/Mines | Assembled infested the area 666 | -9/Mines | Build established: Mutant 875 | -9/Mines | Core integrity fell below 50% 913 | -9/Mines | Discovered new exit (range 13) 928 | -9/Mines | Lost 6 parts (1p4n1u) 980 | -9/Mines | Entered Materials 980 | -8/Materials | Evolved 2 slots: Propulsion x1, Weapon x1 1487 | -8/Materials | Core integrity fell below 50% 1519 | -8/Materials | Lost 3 parts (1p1n1u) 1585 | -8/Materials | Discovered new exit (range 13) 1594 | -8/Materials | Core integrity fell below 20% 1600 | -8/Materials | Destroyed by H-61 Shepherd with Heavy Assault Cannon Last Messages --------------- 01587_ Flight Unit destroyed. 01587_ System corrupted by crushing effect (+4). 01587_ Knocked back. 01587_ K-01 Serf knocked back. 01588_ Knocked back. 01588_ Sml. Storage Unit destroyed. 01588_ Lgt. Nuclear Core destroyed. 01588_ Knocked back. 01589_ Flail destroyed. 01589_ Cesium-ion Thruster destroyed. 01589_ Flail destroyed. 01589_ Knocked back. 01593_ Flight Unit destroyed. 01593_ Slug penetrates Terminal. 01593_ Terminal disabled. 01593_ Flight Unit destroyed. 01594_ EM Shotgun severed. 01596_ K-01 Serf collects debris. 01600_ Penetrated by Slug. 01600_ Flail blasted off. Map ----- +----------------------------------------------------+ | ???# ?????????????????????????? | | ???# ?????????????????????????? | | ???# "" ?????????????????????????? | | ???# Y" #?????????????????????????? | | ???# "" #?????????????????????????? | | ???#!!! #?????????????????????????? | | ???#!!! #?????????????????????????? | | #+##!!! #?????????????????????????? | | #?????????????????????????? | | """ #?????????????????????????? | | """ #?????????????????????????? | | ############ """ #?????????????????????????? | | ?????######## """ #?????????????????????????? | | ?????# # #?????????????????????????? | | ?????# # #?????????????????????????? | | ?????# + """ #?????????????????????????? | | ?????# # """ #####?????????????????????? | | ?????# # """ ??????????????????????? | | ?????# ?# """ ####??????????????????????? | | ?????######?# ##########???????????????????? | | ????????????# # #???????????????????? | | ????????????# """ # """ #???????????????????? | | ????????????# """ # """"" #???????????????????? | | ????????????# """ # """"" #???????????????????? | | ????????????# """ # """""% #???????????????????? | | ????????????# # ""@% #???????????????????? | | ############# # ccc #???????????????????? | | """ # T" #???????????????????? | | """ # k #???????????????????? | | """ # #########??????????????? | | """ #??????????????? | | | #??????????????? | | * #??????????????? | | ##################### #### #??????????????? | | ????????????????????## #???? #??????????????? | | ?????????????????????# # #?????#??????????????? | | ?????????????????????##; #????????????????????? | | ???????????????????????# H ##????????????????????? | | ???????????????????????# #?????????????????????? | | ???????????????????????# #?????????????????????? | | ???????????????????????# #?????????????????????? | | ???????????????????????# #?????????????????????? | | ???????????????????????? < #?????????????????????? | | ???????????????????????? #?????????????????????? | | ????????????????????????# ##?????????????????????? | | ????????????????????????? #??????????????????????? | | ????????????????????????? ???????????????????????? | | ????????????????????????? ???????????????????????? | | ????????????????????????? ???????????????????????? | | ?????????????????????????????????????????????????? | +----------------------------------------------------+ Best States ------------- Heat Dissipation 31 Energy Generation 14 Energy Capacity 265 Matter Stores 300 Matter Capacity 300 Sight Range 16 Terrain Scan Density 10 Evasion (%) 64 Item Schematics ----------------- None Robot Schematics ------------------ None Fabricated ------------ Nothing Alien Tech Used ----------------- None Achievements -------------- None Challenges ------------ None Game ------ Seed HybridRecoilPlating Manual? 0 Play Time 00:22:27 Cumulative 32.7 hours Start 2025.01.03 @ 12:46:37 End 2025.01.03 @ 13:49:10 Sessions 1 Manual Loads 0 Difficulty Rogue Special Mode None Game No. 63 Rogue 63 Adventurer 0 Explorer 0 Win Type - Total 0 Types 0/0/0/0/0/0/0/0/0 Lore% 5 Gallery% 28 Achievement% 24 Wizard Run 0 Options --------- Layout 1 ASCII 0 Keyboard 0 Movement Mouse Keybinds 0 Fullscreen 2 Font 32/SmallcapsGlow Map View 50x35 Zoom Use 0% Tactical HUD 1 Map Filters NONE Filters NONE Steam 1 RUN: 8f5a56dc-a631-4f42-8fef-2445a31f1009